[Event "Balkan Youth Online-ch 2020"]
[Site "Online"]
[Date "2020.10.31"]
[Round "5.77"]
[White "Tsekoura, Vaia"]
[Black "Mitkova, Victoria-Elizabeth"]
[Result "0-1"]
[ECO "B84"]
[WhiteElo "1488"]
[BlackElo "1105"]
[Annotator "NA"]
[PlyCount "68"]
[EventDate "2020.10.31"]
[EventType "swiss"]
[SourceTitle "playchess.com"]
[Source "ChessBase"]
[SourceQuality "1"]
[TimeControl "1500+5"]

1. e4 {[%emt 0:00:00]} c5 {[%emt 0:00:06]} 2. Nf3 {[%emt 0:00:00]} e6 {[%emt 0:00:00]} 3. d4 {[%emt 0:00:00]} cxd4 {[%emt 0:00:00]} 4. Nxd4 {[%emt 0:00:00]} Nf6 {[%emt 0:00:00]} 5. Nc3 {[%emt 0:00:00]} d6 {[%emt 0:00:00]} 6. Be2 {[%emt 0:01:31]} a6 {[%emt 0:00:14]} 7. Be3 {[%emt 0:00:56]} b5 {[%emt 0:00:30]} 8. a3 {[%emt 0:00:58]} Bb7 {[%emt 0:00:18]} 9. Bf3 {[%emt 0:00:42]} Nbd7 {[%emt 0:00:11]} 10. g3 {[%emt 0:01:45]} Ne5 {[%emt 0:00:29]} 11. Bg2 {[%emt 0:00:00]} Be7 {[%emt 0:00:04]} 12. h3 {[%emt 0:00:06]} Nc4 {[%emt 0:00:14]} 13. Bc1 {[%emt 0:00:41]} O-O {[%emt 0:00:45]} 14. O-O {[%emt 0:00:00]} Qc7 {[%emt 0:00:13]} 15. Kh1 {[%emt 0:02:36]} Rac8 {[%emt 0:01:03]} 16. b3 {[%emt 0:02:29]} Nxa3 {[%emt 0:01:52]} 17. Bxa3 {[%emt 0:01:39]} Qxc3 {[%emt 0:00:02]} 18. e5 {[%emt 0:00:18]} Ne4 {[%emt 0:00:38]} 19. Qd3 {[%emt 0:00:46]} Qxa1 {[%emt 0:01:58]} 20. Rxa1 {[%emt 0:00:34]} Nxf2+ {[%emt 0:00:05]} 21. Kh2 {[%emt 0:00:39]} Nxd3 {[%emt 0:00:06]} 22. Bxb7 {[%emt 0:00:04]} b4 {[%emt 0:01:17]} 23. Bxc8 {[%emt 0:05:09]} Rxc8 {[%emt 0:00:11]} 24. Bc1 {[%emt 0:01:42]} Nxc1 {[%emt 0:00:34]} 25. Rxc1 {[%emt 0:00:06]} dxe5 {[%emt 0:00:02]} 26. Nf3 {[%emt 0:00:00]} e4 {[%emt 0:00:03]} 27. Ne5 {[%emt 0:00:39]} Bg5 {[%emt 0:00:55]} 28. Ra1 {[%emt 0:00:46]} Bf6 {[%emt 0:00:17]} 29. Ra5 {[%emt 0:00:11]} Rxc2+ {[%emt 0:00:02]} 30. Kg1 {[%emt 0:00:03]} Bxe5 {[%emt 0:00:14]} 31. Rxe5 {[%emt 0:00:01]} Rc3 {[%emt 0:00:00]} 32. Kf2 {[%emt 0:00:38]} Rf3+ {[%emt 0:00:10]} 33. Kg2 {[%emt 0:00:03]} Rxb3 {[%emt 0:00:02]} 34. Rxe4 {[%emt 0:00:00]} g6 {[%emt 0:00:01]} 0-1

[Event "Balkan Youth Online-ch 2020"]
[Site "Online"]
[Date "2020.10.31"]
[Round "5.78"]
[White "Mosurovic, Milena"]
[Black "Chicarosie, Ioana-Bianca"]
[Result "1-0"]
[ECO "C01"]
[WhiteElo "1428"]
[BlackElo "1521"]
[Annotator "NA"]
[PlyCount "87"]
[EventDate "2020.10.31"]
[EventType "swiss"]
[SourceTitle "playchess.com"]
[Source "ChessBase"]
[SourceQuality "1"]
[TimeControl "1500+5"]

1. e4 {[%emt 0:00:00]} e6 {[%emt 0:00:00]} 2. Nc3 {[%emt 0:00:00]} d5 {[%emt 0:00:04]} 3. exd5 {[%emt 0:00:08]} exd5 {[%emt 0:00:00]} 4. d4 {[%emt 0:00:00]} Be6 {[%emt 0:00:24]} 5. g3 {[%emt 0:00:00]} Bd6 {[%emt 0:00:04]} 6. Bg2 {[%emt 0:00:00]} Ne7 {[%emt 0:00:00]} 7. Nf3 {[%emt 0:00:00]} f6 {[%emt 0:00:37]} 8. O-O {[%emt 0:00:16]} Nbc6 {[%emt 0:00:07]} 9. Re1 {[%emt 0:00:01]} Qd7 {[%emt 0:00:02]} 10. a3 {[%emt 0:00:04]} O-O-O {[%emt 0:00:00]} 11. Nb5 {[%emt 0:00:01]} g5 {[%emt 0:00:12]} 12. b4 {[%emt 0:00:08]} h5 {[%emt 0:00:28]} 13. Nxd6+ {[%emt 0:00:12]} Qxd6 {[%emt 0:00:00]} 14. b5 {[%emt 0:00:02]} Na5 {[%emt 0:01:09]} 15. Qe2 {[%emt 0:00:27]} Kd7 {[%emt 0:00:20]} 16. a4 {[%emt 0:00:10]} Nf5 {[%emt 0:00:53]} 17. Ba3 {[%emt 0:00:17]} c5 {[%emt 0:03:28]} 18. Bxc5 {[%emt 0:00:08]} Nxd4 {[%emt 0:01:13]} 19. Nxd4 {[%emt 0:00:51]} Qxc5 {[%emt 0:00:09]} 20. Qxe6+ {[%emt 0:00:21]} Kc7 {[%emt 0:00:06]} 21. Qxf6 {[%emt 0:00:53]} Qd6 {[%emt 0:00:47]} 22. Re7+ {[%emt 0:00:39]} Kb8 {[%emt 0:00:07]} 23. Qxg5 {[%emt 0:00:53]} Rdg8 {[%emt 0:02:23]} 24. Qe3 {[%emt 0:00:14]} Nc4 {[%emt 0:00:42]} 25. Qe6 {[%emt 0:00:19]} Rd8 {[%emt 0:00:43]} 26. Qxd6+ {[%emt 0:00:28]} Rxd6 {[%emt 0:00:06]} 27. Rae1 {[%emt 0:00:10]} Rhd8 {[%emt 0:00:43]} 28. Rh7 {[%emt 0:01:37]} Nb6 {[%emt 0:01:01]} 29. Ree7 {[%emt 0:00:33]} R6d7 {[%emt 0:00:39]} 30. Rxd7 {[%emt 0:00:25]} Nxd7 {[%emt 0:00:32]} 31. Ne6 {[%emt 0:00:23]} Re8 {[%emt 0:00:08]} 32. Rxd7 {[%emt 0:00:04]} Rxe6 {[%emt 0:00:02]} 33. Bxd5 {[%emt 0:00:00]} Re1+ {[%emt 0:00:08]} 34. Kg2 {[%emt 0:00:00]} Re2 {[%emt 0:00:25]} 35. Rxb7+ {[%emt 0:00:00]} Kc8 {[%emt 0:00:00]} 36. Rxa7 {[%emt 0:00:00]} Rxc2 {[%emt 0:00:02]} 37. b6 {[%emt 0:00:00]} Rb2 {[%emt 0:00:06]} 38. b7+ {[%emt 0:00:03]} Kc7 {[%emt 0:00:10]} 39. Bf3 {[%emt 0:00:08]} Rb6 {[%emt 0:00:06]} 40. a5 {[%emt 0:00:27]} Rb4 {[%emt 0:00:07]} 41. a6 {[%emt 0:00:12]} Rb6 {[%emt 0:00:12]} 42. b8=Q+ {[%emt 0:00:04]} Kxb8 {[%emt 0:00:03]} 43. Rb7+ {[%emt 0:00:00]} Rxb7 {[%emt 0:00:05]} 44. axb7 {[%emt 0:00:00]} 1-0

[Event "Balkan Youth Online-ch 2020"]
[Site "Online"]
[Date "2020.10.31"]
[Round "5.79"]
[White "Paroglou, Marianna"]
[Black "Lusheska, Elena"]
[Result "1-0"]
[ECO "B13"]
[WhiteElo "1436"]
[BlackElo "1086"]
[Annotator "NA"]
[PlyCount "141"]
[EventDate "2020.10.31"]
[EventType "swiss"]
[SourceTitle "playchess.com"]
[Source "ChessBase"]
[SourceQuality "1"]
[TimeControl "1500+5"]

1. e4 {[%emt 0:00:00]} c6 {[%emt 0:00:00]} 2. d4 {[%emt 0:00:05]} d5 {[%emt 0:00:00]} 3. exd5 {[%emt 0:00:00]} cxd5 {[%emt 0:00:00]} 4. Bd3 {[%emt 0:00:00]} Nf6 {[%emt 0:00:00]} 5. Bf4 {[%emt 0:01:52]} Nc6 {[%emt 0:00:14]} 6. c3 {[%emt 0:00:00]} e6 {[%emt 0:00:36]} 7. Nf3 {[%emt 0:00:34]} Bd6 {[%emt 0:00:18]} 8. Bxd6 {[%emt 0:00:09]} Qxd6 {[%emt 0:00:00]} 9. O-O {[%emt 0:00:00]} O-O {[%emt 0:00:03]} 10. Re1 {[%emt 0:00:04]} Re8 {[%emt 0:00:00]} 11. Ne5 {[%emt 0:00:45]} Qc7 {[%emt 0:00:13]} 12. f4 {[%emt 0:01:41]} Nd7 {[%emt 0:01:53]} 13. Bxh7+ {[%emt 0:08:48]} Kf8 {[%emt 0:01:50]} 14. Bd3 {[%emt 0:03:09]} Nf6 {[%emt 0:02:35]} 15. Nd2 {[%emt 0:00:49]} b6 {[%emt 0:01:01]} 16. Qf3 {[%emt 0:03:00]} Bb7 {[%emt 0:00:37]} 17. Re2 {[%emt 0:01:50]} Ke7 {[%emt 0:00:49]} 18. g4 {[%emt 0:01:10]} Kd8 {[%emt 0:00:14]} 19. g5 {[%emt 0:00:41]} Ng8 {[%emt 0:00:04]} 20. Rae1 {[%emt 0:00:28]} Qe7 {[%emt 0:00:30]} 21. Bb5 {[%emt 0:00:51]} Kc7 {[%emt 0:00:48]} 22. Qg3 {[%emt 0:00:04]} a6 {[%emt 0:00:42]} 23. Nxc6 {[%emt 0:00:17]} Bxc6 {[%emt 0:00:09]} 24. f5+ {[%emt 0:00:18]} Qd6 {[%emt 0:00:27]} 25. Qxd6+ {[%emt 0:00:00]} Kxd6 {[%emt 0:00:00]} 26. Bxc6 {[%emt 0:00:00]} Kxc6 {[%emt 0:00:00]} 27. fxe6 {[%emt 0:00:00]} fxe6 {[%emt 0:00:00]} 28. Rxe6+ {[%emt 0:00:00]} Rxe6 {[%emt 0:00:00]} 29. Rxe6+ {[%emt 0:00:00]} Kc7 {[%emt 0:00:03]} 30. Kf2 {[%emt 0:00:05]} Rf8+ {[%emt 0:00:17]} 31. Kg3 {[%emt 0:00:04]} Rf7 {[%emt 0:00:22]} 32. Nf3 {[%emt 0:00:16]} Re7 {[%emt 0:00:22]} 33. Rxe7+ {[%emt 0:00:30]} Nxe7 {[%emt 0:00:00]} 34. Kf4 {[%emt 0:00:00]} Kd6 {[%emt 0:00:00]} 35. Ne5 {[%emt 0:00:00]} Ke6 {[%emt 0:00:02]} 36. h4 {[%emt 0:00:02]} g6 {[%emt 0:00:18]} 37. Nf3 {[%emt 0:00:20]} Ng8 {[%emt 0:00:40]} 38. Kg4 {[%emt 0:00:01]} Ne7 {[%emt 0:00:04]} 39. b4 {[%emt 0:00:04]} Kf7 {[%emt 0:00:33]} 40. a4 {[%emt 0:00:08]} Ke6 {[%emt 0:00:00]} 41. Nd2 {[%emt 0:00:03]} Nf5 {[%emt 0:00:12]} 42. h5 {[%emt 0:00:00]} gxh5+ {[%emt 0:00:06]} 43. Kxh5 {[%emt 0:00:00]} Ne7 {[%emt 0:00:06]} 44. Kh6 {[%emt 0:00:08]} Kf7 {[%emt 0:00:03]} 45. Kh7 {[%emt 0:00:01]} Ng6 {[%emt 0:00:13]} 46. Nf3 {[%emt 0:00:01]} Nf8+ {[%emt 0:00:20]} 47. Kh6 {[%emt 0:00:00]} Ne6 {[%emt 0:00:27]} 48. Ne5+ {[%emt 0:00:07]} Kg8 {[%emt 0:00:00]} 49. Kg6 {[%emt 0:00:03]} Nf8+ {[%emt 0:00:25]} 50. Kf5 {[%emt 0:00:22]} Kg7 {[%emt 0:00:07]} 51. g6 {[%emt 0:00:10]} Kg8 {[%emt 0:00:34]} 52. Kf6 {[%emt 0:00:01]} b5 {[%emt 0:00:04]} 53. a5 {[%emt 0:00:02]} Kh8 {[%emt 0:00:13]} 54. g7+ {[%emt 0:00:00]} Kg8 {[%emt 0:00:01]} 55. gxf8=Q+ {[%emt 0:00:00]} Kxf8 {[%emt 0:00:00]} 56. Ke6 {[%emt 0:00:00]} Ke8 {[%emt 0:00:00]} 57. Kxd5 {[%emt 0:00:00]} Kd8 {[%emt 0:00:00]} 58. Kc6 {[%emt 0:00:00]} Kc8 {[%emt 0:00:00]} 59. Kb6 {[%emt 0:00:00]} Kb8 {[%emt 0:00:00]} 60. Kxa6 {[%emt 0:00:00]} Ka8 {[%emt 0:00:00]} 61. Kxb5 {[%emt 0:00:00]} Ka7 {[%emt 0:00:00]} 62. d5 {[%emt 0:00:00]} Kb7 {[%emt 0:00:00]} 63. d6 {[%emt 0:00:00]} Kc8 {[%emt 0:00:00]} 64. a6 {[%emt 0:00:00]} Kb8 {[%emt 0:00:00]} 65. d7 {[%emt 0:00:00]} Kc7 {[%emt 0:00:00]} 66. a7 {[%emt 0:00:00]} Kb7 {[%emt 0:00:00]} 67. a8=Q+ {[%emt 0:00:00]} Kxa8 {[%emt 0:00:00]} 68. d8=Q+ {[%emt 0:00:00]} Kb7 {[%emt 0:00:00]} 69. Qd7+ {[%emt 0:00:00]} Ka8 {[%emt 0:00:00]} 70. Kb6 {[%emt 0:00:00]} Kb8 {[%emt 0:00:00]} 71. Qb7# {[%emt 0:00:00]} 1-0

[Event "Balkan Youth Online-ch 2020"]
[Site "Online"]
[Date "2020.10.31"]
[Round "5.83"]
[White "Elma, Muge"]
[Black "Dimitrijevic, Andjela"]
[Result "1-0"]
[ECO "A55"]
[WhiteElo "1689"]
[BlackElo "1810"]
[Annotator "NA"]
[PlyCount "125"]
[EventDate "2020.10.31"]
[EventType "swiss"]
[SourceTitle "playchess.com"]
[Source "ChessBase"]
[SourceQuality "1"]
[TimeControl "1500+5"]

1. d4 {[%emt 0:00:00]} Nf6 {[%emt 0:00:01]} 2. c4 {[%emt 0:00:00]} d6 {[%emt 0:00:00]} 3. Nf3 {[%emt 0:00:00]} Nbd7 {[%emt 0:00:00]} 4. Nc3 {[%emt 0:00:00]} c6 {[%emt 0:00:00]} 5. g3 {[%emt 0:00:43]} e5 {[%emt 0:00:25]} 6. e4 {[%emt 0:00:10]} Be7 {[%emt 0:01:02]} 7. Bg2 {[%emt 0:00:10]} O-O {[%emt 0:00:29]} 8. O-O {[%emt 0:00:00]} a6 {[%emt 0:00:01]} 9. a4 $14 {[%emt 0:00:56]} a5 {[%emt 0:00:43]} 10. h3 {[%emt 0:01:13]} Re8 {[%emt 0:00:14]} 11. Re1 {[%emt 0:00:36]} exd4 {[%emt 0:00:34]} 12. Nxd4 {[%emt 0:00:05]} Nc5 {[%emt 0:00:02]} 13. Bf4 {[%emt 0:00:52]} Bf8 {[%emt 0:00:49]} 14. Qc2 {[%emt 0:00:44]} g6 {[%emt 0:05:49]} 15. Rad1 {[%emt 0:01:32]} Nh5 {[%emt 0:04:21]} 16. Be3 {[%emt 0:01:22]} Qb6 {[%emt 0:01:16]} 17. g4 {[%emt 0:05:33]} Nf6 {[%emt 0:00:44]} 18. f4 {[%emt 0:01:20]} Nfd7 {[%emt 0:04:21]} 19. Kh1 {[%emt 0:01:29]} Nb8 {[%emt 0:00:01]} 20. f5 {[%emt 0:02:07]} Qd8 {[%emt 0:02:06]} 21. Qf2 {[%emt 0:03:13]} Bg7 {[%emt 0:00:44]} 22. Rf1 {[%emt 0:01:38]} f6 {[%emt 0:00:18]} 23. Nxc6 {[%emt 0:01:03]} Qc7 {[%emt 0:01:01]} 24. Bxc5 {[%emt 0:00:19]} dxc5 {[%emt 0:00:01]} 25. Nxb8 {[%emt 0:01:07]} Rxb8 {[%emt 0:00:00]} 26. Nd5 {[%emt 0:00:00]} Qe5 {[%emt 0:00:54]} 27. fxg6 {[%emt 0:00:06]} hxg6 {[%emt 0:00:04]} 28. Nxf6+ {[%emt 0:00:01]} Bxf6 {[%emt 0:00:01]} 29. Qxf6 {[%emt 0:00:00]} Qxf6 {[%emt 0:00:40]} 30. Rxf6 {[%emt 0:00:00]} Kg7 {[%emt 0:00:00]} 31. Rdd6 {[%emt 0:00:00]} Rf8 {[%emt 0:00:37]} 32. Rxg6+ {[%emt 0:00:00]} Kh7 {[%emt 0:00:00]} 33. Rh6+ {[%emt 0:00:00]} Kg7 {[%emt 0:00:00]} 34. Rdg6+ {[%emt 0:00:00]} Kf7 {[%emt 0:00:00]} 35. Rf6+ {[%emt 0:00:13]} Ke7 {[%emt 0:00:03]} 36. Rxf8 {[%emt 0:00:00]} Kxf8 {[%emt 0:00:00]} 37. Rh8+ {[%emt 0:00:09]} Kg7 {[%emt 0:00:00]} 38. Rd8 {[%emt 0:00:00]} Kf7 {[%emt 0:00:00]} 39. e5 {[%emt 0:00:04]} Ke7 {[%emt 0:00:00]} 40. Rh8 {[%emt 0:00:05]} Kd7 {[%emt 0:00:05]} 41. Bd5 {[%emt 0:00:14]} Kc7 {[%emt 0:00:00]} 42. e6 {[%emt 0:00:21]} Kd6 {[%emt 0:00:00]} 43. Rh6 {[%emt 0:00:28]} b6 {[%emt 0:00:06]} 44. g5 {[%emt 0:00:04]} Ba6 {[%emt 0:00:00]} 45. g6 {[%emt 0:00:06]} Ke7 {[%emt 0:00:14]} 46. g7 {[%emt 0:00:00]} Rg8 {[%emt 0:00:00]} 47. Rg6 {[%emt 0:00:05]} Bc8 {[%emt 0:00:18]} 48. h4 {[%emt 0:00:00]} Ke8 {[%emt 0:00:01]} 49. e7 {[%emt 0:00:06]} Kxe7 {[%emt 0:00:01]} 50. Bxg8 {[%emt 0:00:00]} Ke8 {[%emt 0:00:00]} 51. h5 {[%emt 0:00:00]} Bf5 {[%emt 0:00:00]} 52. Rg5 {[%emt 0:00:00]} Bd7 {[%emt 0:00:00]} 53. Bf7+ {[%emt 0:00:00]} Kxf7 {[%emt 0:00:00]} 54. g8=Q+ {[%emt 0:00:00]} Ke7 {[%emt 0:00:00]} 55. Qd5 {[%emt 0:00:06]} Be8 {[%emt 0:00:00]} 56. Rg7+ {[%emt 0:00:04]} Kf6 {[%emt 0:00:02]} 57. Qg5+ {[%emt 0:00:00]} Ke6 {[%emt 0:00:00]} 58. Qe7+ {[%emt 0:00:02]} Kf5 {[%emt 0:00:00]} 59. Qxe8 {[%emt 0:00:00]} Kf6 {[%emt 0:00:00]} 60. Rf7+ {[%emt 0:00:00]} Kg5 {[%emt 0:00:00]} 61. Qg8+ {[%emt 0:00:00]} Kh4 {[%emt 0:00:00]} 62. Rf4+ {[%emt 0:00:00]} Kh3 {[%emt 0:00:00]} 63. Qg4# {[%emt 0:00:00]} 1-0

[Event "Balkan Youth Online-ch 2020"]
[Site "Online"]
[Date "2020.10.31"]
[Round "5.84"]
[White "Popovic, Mateja"]
[Black "Kouta, Antonia"]
[Result "1/2-1/2"]
[ECO "A48"]
[WhiteElo "1592"]
[BlackElo "1714"]
[Annotator "NA"]
[PlyCount "54"]
[EventDate "2020.10.31"]
[EventType "swiss"]
[SourceTitle "playchess.com"]
[Source "ChessBase"]
[SourceQuality "1"]
[TimeControl "1500+5"]

1. d4 {[%emt 0:00:00]} Nf6 {[%emt 0:00:00]} 2. Nf3 {[%emt 0:00:00]} g6 {[%emt 0:00:30]} 3. Bg5 {[%emt 0:00:00]} Bg7 {[%emt 0:00:00]} 4. Nbd2 {[%emt 0:00:00]} d6 {[%emt 0:00:45]} 5. c3 {[%emt 0:00:00]} O-O {[%emt 0:00:18]} 6. e4 {[%emt 0:00:44]} h6 {[%emt 0:00:15]} 7. Bxf6 {[%emt 0:00:13]} Bxf6 {[%emt 0:00:02]} 8. Bd3 {[%emt 0:00:09]} Bg4 {[%emt 0:00:56]} 9. h3 {[%emt 0:00:04]} Be6 {[%emt 0:00:14]} 10. Qe2 {[%emt 0:00:20]} a5 {[%emt 0:00:29]} 11. Qe3 {[%emt 0:00:02]} Bg7 {[%emt 0:00:01]} 12. d5 {[%emt 0:00:39]} Bc8 {[%emt 0:00:14]} 13. h4 {[%emt 0:00:00]} h5 {[%emt 0:00:55]} 14. Nh2 {[%emt 0:00:26]} Nd7 {[%emt 0:01:34]} 15. g4 {[%emt 0:00:26]} Nf6 {[%emt 0:00:10]} 16. gxh5 {[%emt 0:00:09]} Nxh5 {[%emt 0:00:01]} 17. Be2 {[%emt 0:00:00]} f5 {[%emt 0:05:10]} 18. Bxh5 {[%emt 0:00:20]} gxh5 {[%emt 0:00:00]} 19. Qg5 {[%emt 0:00:09]} Qe8 {[%emt 0:00:00]} 20. Rg1 {[%emt 0:00:00]} Qf7 {[%emt 0:00:03]} 21. Qh6 {[%emt 0:00:30]} Re8 {[%emt 0:03:27]} 22. O-O-O {[%emt 0:00:46]} Kf8 {[%emt 0:00:07]} 23. Qh7 {[%emt 0:00:20]} Bf6 {[%emt 0:00:30]} 24. Qh6+ {[%emt 0:00:14]} Bg7 {[%emt 0:00:00]} 25. Qg5 {[%emt 0:00:00]} Bf6 {[%emt 0:01:04]} 26. Qf4 {[%emt 0:00:27]} Be5 {[%emt 0:00:36]} 27. Qh6+ {[%emt 0:00:01]} Bg7 {[%emt 0:00:00]} 1/2-1/2

[Event "Balkan Youth Online-ch 2020"]
[Site "Online"]
[Date "2020.10.31"]
[Round "5.86"]
[White "Anghel, Maria"]
[Black "Sural, Ceren"]
[Result "0-1"]
[ECO "D35"]
[WhiteElo "1826"]
[BlackElo "1686"]
[Annotator "NA"]
[PlyCount "70"]
[EventDate "2020.10.31"]
[EventType "swiss"]
[SourceTitle "playchess.com"]
[Source "ChessBase"]
[SourceQuality "1"]
[TimeControl "1500+5"]

1. d4 {[%emt 0:00:00]} d5 {[%emt 0:00:00]} 2. c4 {[%emt 0:00:00]} e6 {[%emt 0:00:00]} 3. Nc3 {[%emt 0:00:00]} c6 {[%emt 0:00:02]} 4. cxd5 {[%emt 0:00:09]} exd5 {[%emt 0:00:16]} 5. Nf3 {[%emt 0:00:06]} Bf5 {[%emt 0:00:56]} 6. Bf4 {[%emt 0:02:24]} Nf6 {[%emt 0:00:45]} 7. e3 {[%emt 0:00:33]} Qb6 {[%emt 0:01:51]} 8. Qc1 {[%emt 0:01:11]} Nbd7 {[%emt 0:02:32]} 9. Be2 {[%emt 0:00:33]} Be7 {[%emt 0:00:40]} 10. O-O {[%emt 0:00:02]} O-O {[%emt 0:00:00]} 11. h3 {[%emt 0:00:30] D35: Queen's Gambit Declined: Exchange Variation.} Rac8 {[%emt 0:00:33] [#]} 12. Qd2 $146 {[%emt 0:03:03]} ({Predecessor:} 12. Rd1 Rfd8 13. Ne5 {½-½ (13) Vakhidov,T (2470)-Tregubov,P (2560) Krasnodar 1998}) 12... Bb4 {[%emt 0:00:46]} 13. Bd3 {[%emt 0:03:40]} Bg6 {[%emt 0:03:12]} 14. Bxg6 {[%emt 0:00:35]} hxg6 {[%emt 0:00:00]} 15. Rfc1 {[%emt 0:04:01]} Qd8 {[%emt 0:01:26]} 16. a3 {[%emt 0:00:37]} Be7 {[%emt 0:01:14]} 17. b4 {[%emt 0:01:00]} Nb6 {[%emt 0:00:40]} 18. Ne5 {[%emt 0:01:17]} Nfd7 {[%emt 0:00:34]} 19. Nd3 {[%emt 0:01:02]} Nc4 {[%emt 0:00:32]} 20. Qe2 {[%emt 0:00:09]} Bd6 {[%emt 0:00:55]} 21. Bxd6 {[%emt 0:01:17]} Nxd6 {[%emt 0:00:00]} 22. Na4 {[%emt 0:00:38]} Re8 {[%emt 0:01:02]} 23. Nac5 {[%emt 0:00:19]} Nxc5 {[%emt 0:00:41]} 24. bxc5 {[%emt 0:00:29]} Nf5 {[%emt 0:00:12]} 25. Qg4 {[%emt 0:00:59]} Re4 {[%emt 0:00:43]} 26. Qf3 {[%emt 0:00:06]} Qg5 {[%emt 0:01:58]} 27. Re1 {[%emt 0:01:49]} Rce8 {[%emt 0:00:49]} 28. Ne5 {[%emt 0:00:35]} f6 {[%emt 0:00:21]} 29. Nd3 {[%emt 0:00:03]} Nh4 {[%emt 0:01:18]} 30. Qg3 {[%emt 0:00:00]} Qxg3 {[%emt 0:00:13]} 31. fxg3 {[%emt 0:00:01]} Nf5 {[%emt 0:00:00]} 32. Rab1 {[%emt 0:00:16]} R8e7 {[%emt 0:00:22]} 33. Kf2 {[%emt 0:00:02]} Nxe3 {[%emt 0:00:48]} 34. Nf4 {[%emt 0:00:11]} Kf7 $19 {[%emt 0:00:18]} 35. Rb2 {[%emt 0:00:06]} Ng4+ {[%emt 0:00:17]} 0-1

[Event "Balkan Youth Online-ch 2020"]
[Site "Online"]
[Date "2020.10.31"]
[Round "5.87"]
[White "Ivanovic, Tara"]
[Black "Tsampouli, Vasiliki"]
[Result "0-1"]
[ECO "D00"]
[WhiteElo "1283"]
[BlackElo "1549"]
[Annotator "NA"]
[PlyCount "70"]
[EventDate "2020.10.31"]
[EventType "swiss"]
[SourceTitle "playchess.com"]
[Source "ChessBase"]
[SourceQuality "1"]
[TimeControl "1500+5"]

1. e3 {[%emt 0:00:00]} Nf6 {[%emt 0:00:13]} 2. Nf3 {[%emt 0:00:00]} e6 {[%emt 0:00:00]} 3. d4 {[%emt 0:00:00]} d5 {[%emt 0:00:00]} 4. Nc3 {[%emt 0:00:00]} c5 {[%emt 0:00:11]} 5. dxc5 {[%emt 0:00:00]} Bxc5 {[%emt 0:00:00]} 6. Bb5+ {[%emt 0:00:03]} Bd7 {[%emt 0:00:28]} 7. Bxd7+ {[%emt 0:00:16]} Nbxd7 {[%emt 0:00:20]} 8. O-O {[%emt 0:00:16]} O-O {[%emt 0:00:05]} 9. b3 {[%emt 0:00:20]} Rc8 {[%emt 0:00:14]} 10. Bb2 {[%emt 0:00:02]} Qe7 {[%emt 0:00:48]} 11. Ne2 {[%emt 0:01:03]} Rfd8 {[%emt 0:01:00]} 12. Ned4 {[%emt 0:00:10]} Nf8 {[%emt 0:00:21]} 13. Qd3 {[%emt 0:01:14]} Ng6 {[%emt 0:01:01]} 14. Qb5 {[%emt 0:01:07]} a6 {[%emt 0:00:52]} 15. Qd3 {[%emt 0:01:10]} e5 {[%emt 0:00:56]} 16. Nf5 {[%emt 0:00:26]} Qe6 {[%emt 0:00:41]} 17. Ng3 {[%emt 0:00:27]} e4 {[%emt 0:00:11]} 18. Nd4 {[%emt 0:00:00]} exd3 {[%emt 0:00:01]} 19. Nxe6 {[%emt 0:00:00]} fxe6 {[%emt 0:00:00]} 20. cxd3 {[%emt 0:00:01]} Rc7 {[%emt 0:00:42]} 21. Rac1 {[%emt 0:00:45]} Rdc8 {[%emt 0:00:02]} 22. Rc2 {[%emt 0:00:20]} Bd6 {[%emt 0:00:20]} 23. Rxc7 {[%emt 0:00:08]} Rxc7 {[%emt 0:00:00]} 24. Rd1 {[%emt 0:00:08]} Rc2 {[%emt 0:00:14]} 25. Bxf6 {[%emt 0:00:15]} gxf6 {[%emt 0:00:00]} 26. Ra1 {[%emt 0:00:04]} Kf7 {[%emt 0:00:51]} 27. Kf1 {[%emt 0:00:01]} Ne5 {[%emt 0:00:03]} 28. d4 {[%emt 0:00:00]} Nd3 {[%emt 0:00:00]} 29. Ne2 {[%emt 0:00:02]} e5 {[%emt 0:01:00]} 30. dxe5 {[%emt 0:00:03]} fxe5 {[%emt 0:00:00]} 31. Rd1 {[%emt 0:00:00]} e4 {[%emt 0:00:13]} 32. f3 {[%emt 0:00:05]} Bxh2 {[%emt 0:00:49]} 33. g3 {[%emt 0:00:05]} exf3 {[%emt 0:00:00]} 34. Rxd3 {[%emt 0:00:06]} fxe2+ {[%emt 0:00:00]} 35. Ke1 {[%emt 0:00:00]} Bxg3# {[%emt 0:00:00]} 0-1

[Event "Balkan Youth Online-ch 2020"]
[Site "Online"]
[Date "2020.10.31"]
[Round "5.89"]
[White "Obada, Ema"]
[Black "Ergazaki, Eirini"]
[Result "1-0"]
[ECO "B01"]
[WhiteElo "1940"]
[BlackElo "1577"]
[Annotator "ChessBase"]
[PlyCount "39"]
[EventDate "2020.10.31"]
[EventType "swiss"]
[SourceTitle "playchess.com"]
[Source "ChessBase"]
[SourceQuality "1"]
[TimeControl "1500+5"]

1. e4 {[%emt 0:00:00]} d5 {[%emt 0:00:00]} 2. exd5 {[%emt 0:00:00]} Qxd5 {[%emt 0:00:00]} 3. Nc3 {[%emt 0:00:00]} Qe5+ {[%emt 0:00:00]} 4. Nge2 {[%emt 0:00:22]} Nf6 {[%emt 0:00:00]} 5. d4 {[%emt 0:00:00]} Qa5 {[%emt 0:00:00]} 6. Bd2 {[%emt 0:01:13]} Bf5 {[%emt 0:01:36]} 7. Ng3 {[%emt 0:00:33]} Bg6 {[%emt 0:00:16]} 8. Bc4 {[%emt 0:01:13]} Qb6 {[%emt 0:01:11]} 9. d5 {[%emt 0:04:30]} Nbd7 {[%emt 0:02:14]} 10. O-O {[%emt 0:00:36]} c6 {[%emt 0:02:05]} 11. dxc6 {[%emt 0:00:36]} Qxc6 {[%emt 0:00:25]} 12. Bb5 {[%emt 0:00:05]} Qc7 {[%emt 0:00:30]} 13. Qf3 {[%emt 0:01:17]} a6 {[%emt 0:03:25]} 14. Ba4 {[%emt 0:00:11]} e5 {[%emt 0:00:32]} 15. Bg5 {[%emt 0:00:22]} Be7 {[%emt 0:00:26]} 16. Bxf6 {[%emt 0:00:05]} Bxf6 {[%emt 0:00:00]} 17. Nd5 {[%emt 0:00:19]} Qc8 {[%emt 0:00:36]} 18. Nb6 {[%emt 0:00:02]} Qd8 {[%emt 0:00:32]} 19. Bxd7+ {[%emt 0:00:41]} Ke7 {[%emt 0:00:00]} 20. Qa3# {[%emt 0:00:00]} 1-0